[Event "Prague Open 2025"]
[Site "Prague"]
[Date "2025.01.12"]
[Round "4.1"]
[White "Vardanyan, Aras"]
[Black "Harshavardhan G B"]
[Result "0-1"]
[Annotator "RC"]
[ECO "A20"]
[WhiteElo "2312"]
[BlackElo "2405"]
[PlyCount "82"]
[EventDate "2025.01.07"]
[EventType "swiss"]
[EventCountry "CZE"]
[SourceTitle "playchess.com"]
[Source "ChessBase"]
[SourceQuality "1"]
[TimeControl "40/5400+30:1800+30"]

1. c4 {[%emt 0:00:04]} e5 {[%emt 0:00:38]} 2. g3 {[%emt 0:00:10]} Nf6 {[%emt 0:00:22]} 3. Bg2 {[%emt 0:00:06]} c6 {[%emt 0:00:14]} 4. Nf3 {[%emt 0:00:14]} e4 {[%emt 0:00:36]} 5. Nd4 {[%emt 0:00:07]} d5 {[%emt 0:02:24]} 6. cxd5 {[%emt 0:00:22]} cxd5 {[%emt 0:00:26]} 7. d3 {[%emt 0:03:19]} Be7 {[%emt 0:04:14]} 8. Nc3 {[%emt 0:02:34]} exd3 {[%emt 0:00:24]} 9. Qxd3 {[%emt 0:00:18]} Nc6 {[%emt 0:00:08]} 10. O-O {[%emt 0:04:47]} O-O {[%emt 0:00:08]} 11. Bf4 {[%emt 0:07:47]} Be6 {[%emt 0:01:10]} 12. Rfd1 {[%emt 0:01:26]} Rc8 {[%emt 0:09:40]} 13. Nxe6 {[%emt 0:01:34]} fxe6 {[%emt 0:00:08]} 14. Bh3 {[%emt 0:01:13]} Qd7 {[%emt 0:07:26]} 15. e4 {[%emt 0:06:02]} d4 {[%emt 0:04:28]} 16. Ne2 {[%emt 0:10:29]} Kf7 {[%emt 0:03:54]} 17. e5 {[%emt 0:07:37]} Nd5 {[%emt 0:01:26]} 18. Qf3 {[%emt 0:00:35]} Bc5 {[%emt 0:09:08]} 19. Rac1 {[%emt 0:04:06]} Bb6 {[%emt 0:02:38]} 20. Qg4 {[%emt 0:00:51]} Rce8 {[%emt 0:04:10]} 21. a3 {[%emt 0:05:53]} Kg8 {[%emt 0:00:54]} 22. Bg2 {[%emt 0:02:04]} Qf7 {[%emt 0:10:22]} 23. Be4 {[%emt 0:02:10]} Re7 {[%emt 0:03:48]} 24. Qh4 {[%emt 0:04:01]} g6 {[%emt 0:00:28]} 25. Qg5 {[%emt 0:01:08]} Qg7 {[%emt 0:04:32]} 26. Kg2 {[%emt 0:05:05]} Ref7 {[%emt 0:01:44]} 27. f3 {[%emt 0:03:37]} Rf5 {[%emt 0:05:26]} 28. Qg4 {[%emt 0:05:36]} h5 {[%emt 0:01:28]} 29. Qh3 {[%emt 0:00:31]} g5 {[%emt 0:00:16]} 30. Bxf5 {[%emt 0:04:05]} Rxf5 {[%emt 0:00:08]} 31. Qxh5 {[%emt 0:00:33]} gxf4 {[%emt 0:00:56]} 32. Qe8+ {[%emt 0:00:06]} Kh7 {[%emt 0:01:02]} 33. Qxe6 {[%emt 0:01:21]} Ne3+ {[%emt 0:07:02]} 34. Kh1 {[%emt 0:00:27]} Rxe5 {[%emt 0:00:30]} 35. Qh3+ {[%emt 0:00:15]} Qh6 {[%emt 0:00:10]} 36. Qxh6+ {[%emt 0:00:38]} Kxh6 {[%emt 0:00:06]} 37. gxf4 {[%emt 0:03:40]} Nxd1 {[%emt 0:04:38]} 38. fxe5 {[%emt 0:00:07]} d3 {[%emt 0:02:28]} 39. Nc3 {[%emt 0:10:24]} Nxc3 {[%emt 0:01:12]} 40. bxc3 {[%emt 0:00:27]} Nxe5 {[%emt 0:00:30]} 41. f4 {[%emt 0:30:41]} Nc4 {[%emt 0:30:22]} 0-1

[Event "Prague Open 2025"]
[Site "Prague"]
[Date "2025.01.12"]
[Round "4.2"]
[White "Senthil Maran K"]
[Black "Radzimski, Antoni"]
[Result "1/2-1/2"]
[Annotator "RC"]
[ECO "E10"]
[WhiteElo "2398"]
[BlackElo "2289"]
[PlyCount "65"]
[EventDate "2025.01.07"]
[EventType "swiss"]
[EventCountry "CZE"]
[SourceTitle "playchess.com"]
[Source "ChessBase"]
[SourceQuality "1"]
[TimeControl "40/5400+30:1800+30"]

1. d4 {[%emt 0:06:53]} Nf6 {[%emt 0:00:10]} 2. c4 {[%emt 0:00:11]} e6 {[%emt 0:00:06]} 3. Nf3 {[%emt 0:00:10]} d5 {[%emt 0:00:23]} 4. g3 {[%emt 0:00:09]} Bb4+ {[%emt 0:00:04]} 5. Nbd2 {[%emt 0:00:09]} O-O {[%emt 0:00:07]} 6. Bg2 {[%emt 0:00:05]} b6 {[%emt 0:00:13]} 7. O-O {[%emt 0:00:10]} Bb7 {[%emt 0:00:02]} 8. b3 {[%emt 0:00:10]} Nbd7 {[%emt 0:00:59]} 9. Bb2 {[%emt 0:00:11]} Be7 {[%emt 0:03:21]} 10. Rc1 {[%emt 0:02:55]} c5 {[%emt 0:04:14]} 11. cxd5 {[%emt 0:05:30]} Bxd5 {[%emt 0:02:05]} 12. Nc4 {[%emt 0:07:28]} Rc8 {[%emt 0:02:15]} 13. Nfe5 {[%emt 0:08:48]} Bxg2 {[%emt 0:02:26]} 14. Kxg2 {[%emt 0:00:08]} cxd4 {[%emt 0:00:11]} 15. Qxd4 {[%emt 0:03:18]} Nxe5 {[%emt 0:00:36]} 16. Qxd8 {[%emt 0:01:20]} Rcxd8 {[%emt 0:02:48]} 17. Nxe5 {[%emt 0:05:13]} Rd2 {[%emt 0:06:18]} 18. Nc4 {[%emt 0:00:22]} Rd5 {[%emt 0:01:36]} 19. Rc2 {[%emt 0:06:14]} Rc8 {[%emt 0:02:46]} 20. Rfc1 {[%emt 0:02:09]} Kf8 {[%emt 0:03:29]} 21. Ne5 {[%emt 0:04:50]} Rxc2 {[%emt 0:00:45]} 22. Rxc2 {[%emt 0:00:02]} Rc5 {[%emt 0:01:41]} 23. Rxc5 {[%emt 0:06:48]} Bxc5 {[%emt 0:00:23]} 24. Nd3 {[%emt 0:01:34]} Be7 {[%emt 0:01:11]} 25. Kf3 {[%emt 0:02:09]} Nd7 {[%emt 0:04:00]} 26. e4 {[%emt 0:00:39]} g6 {[%emt 0:01:07]} 27. Bd4 {[%emt 0:02:34]} Bd6 {[%emt 0:03:02]} 28. e5 {[%emt 0:01:41]} Be7 {[%emt 0:00:24]} 29. a4 {[%emt 0:02:50]} Nb8 {[%emt 0:01:48]} 30. b4 {[%emt 0:01:43]} Nc6 {[%emt 0:00:31]} 31. Bc3 {[%emt 0:01:12]} a6 {[%emt 0:01:06]} 32. Ke4 {[%emt 0:02:12]} Ke8 {[%emt 0:00:55]} 33. g4 {[%emt 0:03:20]} 1/2-1/2

[Event "Prague Open 2025"]
[Site "Prague"]
[Date "2025.01.12"]
[Round "4.3"]
[White "Sokhor, Nazar"]
[Black "Jain Kashish Manoj"]
[Result "1/2-1/2"]
[Annotator "RC"]
[ECO "D02"]
[WhiteElo "2265"]
[BlackElo "2363"]
[PlyCount "53"]
[EventDate "2025.01.07"]
[EventType "swiss"]
[EventCountry "CZE"]
[SourceTitle "playchess.com"]
[Source "ChessBase"]
[SourceQuality "1"]
[TimeControl "40/5400+30:1800+30"]

1. d4 {[%emt 0:00:06]} d5 {[%emt 0:01:10]} 2. Nf3 {[%emt 0:00:11]} Nf6 {[%emt 0:00:06]} 3. c4 {[%emt 0:00:09]} c6 {[%emt 0:00:06]} 4. Qb3 {[%emt 0:00:16]} dxc4 {[%emt 0:02:20]} 5. Qxc4 {[%emt 0:00:06]} Bg4 {[%emt 0:00:09]} 6. Qb3 {[%emt 0:02:03]} Qb6 {[%emt 0:06:32]} 7. Nc3 {[%emt 0:06:12]} Nbd7 {[%emt 0:03:57]} 8. Bf4 {[%emt 0:03:44]} e6 {[%emt 0:12:23]} 9. e3 {[%emt 0:02:11]} Qxb3 {[%emt 0:09:40]} 10. axb3 {[%emt 0:01:43]} Bb4 {[%emt 0:02:30]} 11. Rc1 {[%emt 0:01:50]} c5 {[%emt 0:08:10]} 12. Ne5 {[%emt 0:05:54]} cxd4 {[%emt 0:11:03]} 13. Nxg4 {[%emt 0:00:39]} Nxg4 {[%emt 0:02:10]} 14. exd4 {[%emt 0:00:06]} Ngf6 {[%emt 0:01:06]} 15. Be2 {[%emt 0:02:16]} Nd5 {[%emt 0:09:22]} 16. Bd2 {[%emt 0:00:26]} N7b6 {[%emt 0:01:45]} 17. Bf3 {[%emt 0:02:32]} Kd7 {[%emt 0:17:32]} 18. Ke2 {[%emt 0:11:43]} Bd6 {[%emt 0:06:37]} 19. Ne4 {[%emt 0:02:46]} Ke7 {[%emt 0:00:01]} 20. Nc5 {[%emt 0:05:51]} Bxc5 {[%emt 0:02:02]} 21. dxc5 {[%emt 0:00:23]} Nd7 {[%emt 0:00:01]} 22. Bxd5 {[%emt 0:10:50]} exd5 {[%emt 0:00:01]} 23. Rhe1 {[%emt 0:00:03]} Nf6 {[%emt 0:00:58]} 24. b4 {[%emt 0:13:06]} a6 {[%emt 0:00:35]} 25. c6 {[%emt 0:01:56]} bxc6 {[%emt 0:00:07]} 26. Rxc6 {[%emt 0:00:03]} Kd7 {[%emt 0:00:10]} 27. Rc5 {[%emt 0:03:07]} 1/2-1/2

[Event "Prague Open 2025"]
[Site "Prague"]
[Date "2025.01.12"]
[Round "4.4"]
[White "Lewtak, Damian"]
[Black "Tolmacevs, Artjoms"]
[Result "1/2-1/2"]
[Annotator "RC"]
[ECO "A36"]
[WhiteElo "2359"]
[BlackElo "2252"]
[PlyCount "59"]
[EventDate "2025.01.07"]
[EventType "swiss"]
[EventCountry "CZE"]
[SourceTitle "playchess.com"]
[Source "ChessBase"]
[SourceQuality "1"]
[TimeControl "40/5400+30:1800+30"]

1. c4 {[%emt 0:00:02]} c5 {[%emt 0:00:20]} 2. g3 {[%emt 0:00:43]} g6 {[%emt 0:00:30]} 3. Bg2 {[%emt 0:00:28]} Bg7 {[%emt 0:00:18]} 4. Nc3 {[%emt 0:00:58]} Nc6 {[%emt 0:00:42]} 5. e3 {[%emt 0:03:26]} e5 {[%emt 0:02:02]} 6. Nge2 {[%emt 0:01:01]} Nge7 {[%emt 0:01:37]} 7. a3 {[%emt 0:00:53]} O-O {[%emt 0:06:30]} 8. Rb1 {[%emt 0:00:26]} a5 {[%emt 0:08:18]} 9. d3 {[%emt 0:03:25]} d6 {[%emt 0:02:12]} 10. O-O {[%emt 0:00:43]} Rb8 {[%emt 0:04:31]} 11. Nd5 {[%emt 0:11:04]} Nxd5 {[%emt 0:15:52]} 12. Bxd5 {[%emt 0:05:42]} Bh3 {[%emt 0:01:16]} 13. Re1 {[%emt 0:01:22]} Ne7 {[%emt 0:03:15]} 14. Bg2 {[%emt 0:00:17]} Bxg2 {[%emt 0:00:39]} 15. Kxg2 {[%emt 0:00:06]} d5 {[%emt 0:00:17]} 16. Qb3 {[%emt 0:09:56]} dxc4 {[%emt 0:05:54]} 17. Qxc4 {[%emt 0:02:26]} Qd6 {[%emt 0:05:10]} 18. a4 {[%emt 0:07:53]} Rfd8 {[%emt 0:03:16]} 19. Rd1 {[%emt 0:03:41]} Qd5+ {[%emt 0:05:57]} 20. Qxd5 {[%emt 0:00:06]} Rxd5 {[%emt 0:00:08]} 21. e4 {[%emt 0:05:53]} Rd7 {[%emt 0:00:16]} 22. Be3 {[%emt 0:00:31]} b6 {[%emt 0:00:25]} 23. Rd2 {[%emt 0:00:33]} Rbd8 {[%emt 0:00:19]} 24. Rbd1 {[%emt 0:00:26]} Nc6 {[%emt 0:05:24]} 25. Kf1 {[%emt 0:01:45]} Nb4 {[%emt 0:00:40]} 26. Nc1 {[%emt 0:00:11]} f5 {[%emt 0:01:58]} 27. f3 {[%emt 0:03:25]} Kf7 {[%emt 0:06:25]} 28. Ke2 {[%emt 0:03:17]} Ke6 {[%emt 0:02:03]} 29. g4 {[%emt 0:06:46]} f4 {[%emt 0:03:04]} 30. Bf2 {[%emt 0:00:08]} 1/2-1/2

[Event "Prague Open 2025"]
[Site "Prague"]
[Date "2025.01.12"]
[Round "4.5"]
[White "Moser, Axel"]
[Black "Horak, Martin"]
[Result "0-1"]
[Annotator "RC"]
[ECO "D32"]
[WhiteElo "2160"]
[BlackElo "2357"]
[PlyCount "90"]
[EventDate "2025.01.07"]
[EventType "swiss"]
[EventCountry "CZE"]
[SourceTitle "playchess.com"]
[Source "ChessBase"]
[SourceQuality "1"]
[TimeControl "40/5400+30:1800+30"]

1. d4 {[%emt 0:00:05]} d5 {[%emt 0:00:04]} 2. c4 {[%emt 0:00:14]} e6 {[%emt 0:00:05]} 3. Nc3 {[%emt 0:00:38]} c5 {[%emt 0:00:28]} 4. e3 {[%emt 0:01:48]} Nf6 {[%emt 0:00:44]} 5. Nf3 {[%emt 0:00:59]} a6 {[%emt 0:00:16]} 6. a3 {[%emt 0:03:40]} dxc4 {[%emt 0:01:07]} 7. Bxc4 {[%emt 0:00:52]} b5 {[%emt 0:00:06]} 8. Be2 {[%emt 0:03:17]} Bb7 {[%emt 0:01:04]} 9. O-O {[%emt 0:01:15]} Nbd7 {[%emt 0:01:13]} 10. dxc5 Nxc5 {[%emt 0:02:20]} 11. b4 {[%emt 0:11:07]} Qxd1 {[%emt 0:06:26]} 12. Rxd1 {[%emt 0:00:28]} Nb3 {[%emt 0:00:31]} 13. Rb1 {[%emt 0:00:23]} Nxc1 {[%emt 0:00:16]} 14. Rdxc1 {[%emt 0:01:15]} Bd6 {[%emt 0:04:12]} 15. a4 {[%emt 0:04:34]} bxa4 {[%emt 0:01:35]} 16. Nxa4 {[%emt 0:00:24]} Be4 {[%emt 0:16:38]} 17. Rb2 {[%emt 0:07:36]} a5 {[%emt 0:01:46]} 18. Nb6 {[%emt 0:08:35]} Rd8 {[%emt 0:05:05]} 19. Rd2 {[%emt 0:14:56]} Bxf3 {[%emt 0:19:37]} 20. Bxf3 {[%emt 0:00:11]} axb4 {[%emt 0:00:13]} 21. Kf1 {[%emt 0:04:14]} O-O {[%emt 0:03:48]} 22. Ke2 {[%emt 0:03:42]} Be5 {[%emt 0:03:45]} 23. Rb1 {[%emt 0:08:59]} Bc3 {[%emt 0:04:50]} 24. Rc2 {[%emt 0:00:29]} g5 {[%emt 0:01:43]} 25. h3 {[%emt 0:04:45]} h5 {[%emt 0:00:21]} 26. g3 {[%emt 0:01:07]} g4 {[%emt 0:00:29]} 27. hxg4 {[%emt 0:00:05]} hxg4 {[%emt 0:00:04]} 28. Bg2 {[%emt 0:00:04]} Rd6 {[%emt 0:01:18]} 29. Na4 {[%emt 0:00:17]} Rfd8 {[%emt 0:02:18]} 30. Nxc3 {[%emt 0:00:24]} bxc3 {[%emt 0:00:04]} 31. Rxc3 {[%emt 0:00:06]} Rd2+ {[%emt 0:00:04]} 32. Kf1 {[%emt 0:00:04]} Ra2 {[%emt 0:00:51]} 33. Kg1 {[%emt 0:00:11]} Rdd2 {[%emt 0:00:03]} 34. Rf1 {[%emt 0:00:06]} Kg7 {[%emt 0:03:34]} 35. Rcc1 {[%emt 0:00:06]} Nd7 {[%emt 0:05:30]} 36. Rcd1 {[%emt 0:01:39]} Ne5 {[%emt 0:00:06]} 37. Rxd2 {[%emt 0:00:35]} Rxd2 {[%emt 0:00:05]} 38. Bb7 {[%emt 0:00:13]} f5 {[%emt 0:00:54]} 39. Kg2 {[%emt 0:01:29]} Kf6 {[%emt 0:00:43]} 40. Rh1 {[%emt 0:03:26]} Nd3 {[%emt 0:00:48]} 41. Rf1 {[%emt 0:30:10]} Ra2 {[%emt 0:31:29]} 42. Bc6 {[%emt 0:02:42]} Rb2 {[%emt 0:00:23]} 43. e4 {[%emt 0:01:48]} f4 {[%emt 0:02:52]} 44. gxf4 {[%emt 0:00:55]} Nxf4+ {[%emt 0:00:09]} 45. Kg1 {[%emt 0:04:49]} Kg5 {[%emt 0:00:36]} 0-1

[Event "Prague Open 2025"]
[Site "Prague"]
[Date "2025.01.12"]
[Round "4.6"]
[White "Lalic, Bogdan"]
[Black "Mensing, Adrian"]
[Result "1/2-1/2"]
[Annotator "RC"]
[ECO "E91"]
[WhiteElo "2321"]
[BlackElo "2028"]
[PlyCount "35"]
[EventDate "2025.01.07"]
[EventType "swiss"]
[EventCountry "CZE"]
[SourceTitle "playchess.com"]
[Source "ChessBase"]
[SourceQuality "1"]
[TimeControl "40/5400+30:1800+30"]

1. Nf3 {[%emt 0:08:35]} Nf6 {[%emt 0:00:26]} 2. c4 {[%emt 0:00:09]} g6 {[%emt 0:00:12]} 3. Nc3 {[%emt 0:00:09]} Bg7 {[%emt 0:00:11]} 4. e4 {[%emt 0:00:12]} d6 {[%emt 0:00:07]} 5. d4 {[%emt 0:00:09]} O-O {[%emt 0:00:10]} 6. Be2 {[%emt 0:00:10]} Nbd7 {[%emt 0:00:08]} 7. O-O {[%emt 0:00:14]} e5 {[%emt 0:00:08]} 8. Be3 {[%emt 0:00:19]} Qe7 {[%emt 0:00:11]} 9. Qc2 {[%emt 0:00:17]} c6 {[%emt 0:00:11]} 10. Rad1 {[%emt 0:00:14]} h6 {[%emt 0:00:16]} 11. h3 {[%emt 0:00:17]} exd4 {[%emt 0:01:11]} 12. Rxd4 {[%emt 0:00:18]} Nc5 {[%emt 0:00:14]} 13. b4 {[%emt 0:00:18]} Ne6 {[%emt 0:00:11]} 14. Rd2 {[%emt 0:01:53]} a5 {[%emt 0:00:52]} 15. b5 {[%emt 0:01:46]} Nc5 {[%emt 0:00:15]} 16. Bxc5 {[%emt 0:01:07]} dxc5 {[%emt 0:00:11]} 17. bxc6 {[%emt 0:00:09]} bxc6 {[%emt 0:00:23]} 18. Rfd1 {[%emt 0:00:39]} 1/2-1/2

[Event "Prague Open 2025"]
[Site "Prague"]
[Date "2025.01.12"]
[Round "4.7"]
[White "Marek, Matyas"]
[Black "Platonovs, Nikolajs"]
[Result "1-0"]
[Annotator "RC"]
[ECO "A15"]
[WhiteElo "2314"]
[BlackElo "2077"]
[PlyCount "71"]
[EventDate "2025.01.07"]
[EventType "swiss"]
[EventCountry "CZE"]
[SourceTitle "playchess.com"]
[Source "ChessBase"]
[SourceQuality "1"]
[TimeControl "40/5400+30:1800+30"]

1. c4 {[%emt 0:00:29]} Nf6 {[%emt 0:00:41]} 2. Nf3 {[%emt 0:00:19]} e6 {[%emt 0:00:18]} 3. g3 {[%emt 0:00:05]} d5 {[%emt 0:00:15]} 4. Bg2 {[%emt 0:00:05]} d4 {[%emt 0:00:36]} 5. O-O {[%emt 0:00:18]} c5 {[%emt 0:00:07]} 6. e3 {[%emt 0:00:32]} Nc6 {[%emt 0:00:11]} 7. exd4 {[%emt 0:00:06]} cxd4 {[%emt 0:00:06]} 8. d3 {[%emt 0:00:15]} h6 {[%emt 0:00:37]} 9. Na3 {[%emt 0:02:35]} Be7 {[%emt 0:01:31]} 10. Nc2 O-O {[%emt 0:00:37]} 11. Re1 {[%emt 0:00:36]} Ne8 {[%emt 0:01:20]} 12. Bd2 {[%emt 0:07:38]} a5 {[%emt 0:04:21]} 13. b3 {[%emt 0:00:33]} f6 {[%emt 0:04:44]} 14. a3 {[%emt 0:03:36]} e5 {[%emt 0:01:03]} 15. Nh4 {[%emt 0:01:00]} Nc7 {[%emt 0:00:48]} 16. b4 {[%emt 0:02:06]} Re8 {[%emt 0:01:50]} 17. Qh5 {[%emt 0:02:59]} Bf8 {[%emt 0:07:12]} 18. Be4 {[%emt 0:02:10]} Ne7 {[%emt 0:07:10]} 19. Ng6 {[%emt 0:04:19]} Qd7 {[%emt 0:02:37]} 20. bxa5 {[%emt 0:05:04]} f5 {[%emt 0:11:06]} 21. Nxf8 {[%emt 0:32:37]} Rxf8 {[%emt 0:00:36]} 22. Bg2 {[%emt 0:00:27]} Qd6 {[%emt 0:08:36]} 23. Bb4 {[%emt 0:02:18]} Qf6 {[%emt 0:00:56]} 24. Nxd4 {[%emt 0:00:16]} Na6 {[%emt 0:05:28]} 25. Nb5 {[%emt 0:01:47]} Rd8 {[%emt 0:06:55]} 26. Qe2 {[%emt 0:05:32]} Nc6 {[%emt 0:02:16]} 27. Bc3 {[%emt 0:00:15]} Nc5 {[%emt 0:03:54]} 28. Bd5+ {[%emt 0:02:12]} Kh7 {[%emt 0:02:48]} 29. f4 {[%emt 0:01:11]} Nd4 {[%emt 0:02:19]} 30. Nxd4 {[%emt 0:00:45]} exd4 {[%emt 0:00:10]} 31. Bb4 {[%emt 0:00:04]} Qd6 {[%emt 0:01:39]} 32. Rad1 {[%emt 0:00:41]} Bd7 {[%emt 0:01:50]} 33. Qe5 {[%emt 0:00:27]} Qxe5 {[%emt 0:00:30]} 34. Rxe5 {[%emt 0:00:33]} Na4 {[%emt 0:00:44]} 35. Bxb7 {[%emt 0:01:05]} Rab8 {[%emt 0:00:05]} 36. a6 {[%emt 0:00:12]} 1-0

[Event "Prague Open 2025"]
[Site "Prague"]
[Date "2025.01.12"]
[Round "4.8"]
[White "Zhukovskyi, Myhaylo"]
[Black "Kulhanek, Tomas"]
[Result "1/2-1/2"]
[Annotator "RC"]
[ECO "A07"]
[WhiteElo "2122"]
[BlackElo "2313"]
[PlyCount "42"]
[EventDate "2025.01.07"]
[EventType "swiss"]
[EventCountry "CZE"]
[SourceTitle "playchess.com"]
[Source "ChessBase"]
[SourceQuality "1"]
[TimeControl "40/5400+30:1800+30"]

1. Nf3 {[%emt 0:00:09]} Nf6 {[%emt 0:00:23]} 2. g3 {[%emt 0:00:07]} d5 {[%emt 0:00:09]} 3. Bg2 {[%emt 0:00:05]} c6 {[%emt 0:00:16]} 4. O-O {[%emt 0:00:15]} Bg4 {[%emt 0:00:17]} 5. h3 {[%emt 0:01:41]} Bh5 {[%emt 0:01:44]} 6. c4 {[%emt 0:08:44]} e6 {[%emt 0:01:06]} 7. d4 {[%emt 0:00:30]} Be7 {[%emt 0:01:14]} 8. cxd5 {[%emt 0:03:26]} exd5 {[%emt 0:02:17]} 9. Nc3 {[%emt 0:06:28]} Bxf3 {[%emt 0:05:50]} 10. Bxf3 {[%emt 0:05:13]} O-O {[%emt 0:00:49]} 11. Bg5 {[%emt 0:07:53]} Nbd7 {[%emt 0:00:56]} 12. Rc1 {[%emt 0:01:44]} h6 {[%emt 0:00:22]} 13. Bxf6 {[%emt 0:00:19]} Nxf6 {[%emt 0:00:06]} 14. e4 {[%emt 0:17:32]} dxe4 {[%emt 0:00:38]} 15. Nxe4 {[%emt 0:00:04]} Qb6 {[%emt 0:10:42]} 16. Nxf6+ {[%emt 0:12:55]} Bxf6 {[%emt 0:00:03]} 17. d5 {[%emt 0:01:44]} Rfd8 {[%emt 0:08:29]} 18. Qb3 {[%emt 0:02:47]} c5 {[%emt 0:06:10]} 19. Qc2 {[%emt 0:06:23]} Bd4 {[%emt 0:01:27]} 20. b3 {[%emt 0:01:50]} Qd6 {[%emt 0:13:06]} 21. Kg2 {[%emt 0:00:30]} Re8 {[%emt 0:00:09]} 1/2-1/2

[Event "Prague Open 2025"]
[Site "Prague"]
[Date "2025.01.12"]
[Round "4.9"]
[White "Salgovic, Simon"]
[Black "Pourquet, Matthieu"]
[Result "1-0"]
[Annotator "RC"]
[ECO "C07"]
[WhiteElo "2102"]
[BlackElo "2262"]
[PlyCount "73"]
[EventDate "2025.01.07"]
[EventType "swiss"]
[EventCountry "CZE"]
[SourceTitle "playchess.com"]
[Source "ChessBase"]
[SourceQuality "1"]
[TimeControl "40/5400+30:1800+30"]

1. e4 {[%emt 0:00:04]} e6 {[%emt 0:00:39]} 2. d4 {[%emt 0:00:29]} d5 {[%emt 0:00:04]} 3. Nd2 {[%emt 0:00:46]} c5 {[%emt 0:01:57]} 4. exd5 {[%emt 0:00:12]} Qxd5 {[%emt 0:00:09]} 5. Ngf3 {[%emt 0:00:07]} cxd4 {[%emt 0:00:13]} 6. Bc4 {[%emt 0:00:09]} Qd6 {[%emt 0:00:19]} 7. O-O {[%emt 0:00:11]} Nf6 {[%emt 0:00:04]} 8. Nb3 {[%emt 0:00:08]} Nc6 {[%emt 0:00:12]} 9. Nbxd4 {[%emt 0:00:10]} Nxd4 {[%emt 0:00:05]} 10. Nxd4 {[%emt 0:00:10]} Be7 {[%emt 0:00:08]} 11. Re1 {[%emt 0:05:52]} O-O {[%emt 0:00:18]} 12. c3 {[%emt 0:02:36]} Qc7 {[%emt 0:00:23]} 13. Bb3 {[%emt 0:08:51]} b6 {[%emt 0:00:57]} 14. Qf3 {[%emt 0:09:15]} Bb7 {[%emt 0:01:23]} 15. Bf4 {[%emt 0:19:02]} Bxf3 {[%emt 0:17:13]} 16. Bxc7 {[%emt 0:00:21]} Bd5 {[%emt 0:02:47]} 17. Rad1 {[%emt 0:21:51]} Rac8 {[%emt 0:09:24]} 18. Be5 {[%emt 0:03:03]} Bxb3 {[%emt 0:09:39]} 19. axb3 {[%emt 0:05:08]} a5 {[%emt 0:02:02]} 20. Nb5 {[%emt 0:01:23]} Bc5 {[%emt 0:09:59]} 21. Bd6 {[%emt 0:02:52]} Rfe8 {[%emt 0:02:00]} 22. b4 {[%emt 0:04:16]} axb4 {[%emt 0:02:49]} 23. cxb4 {[%emt 0:00:53]} Bxd6 {[%emt 0:00:17]} 24. Nxd6 {[%emt 0:00:09]} Red8 {[%emt 0:00:35]} 25. Nxc8 {[%emt 0:00:15]} Rxc8 {[%emt 0:00:02]} 26. Rc1 {[%emt 0:02:54]} Rb8 {[%emt 0:07:42]} 27. Rc6 {[%emt 0:02:04]} Nd5 {[%emt 0:02:40]} 28. Rec1 {[%emt 0:01:35]} Ne7 {[%emt 0:01:02]} 29. Rc7 {[%emt 0:05:21]} Kf8 {[%emt 0:00:05]} 30. Rd7 {[%emt 0:03:38]} Ra8 {[%emt 0:00:20]} 31. g3 {[%emt 0:00:53]} Nd5 {[%emt 0:00:07]} 32. Rb7 {[%emt 0:00:40]} g6 {[%emt 0:00:47]} 33. Rd1 {[%emt 0:01:07]} Ra4 {[%emt 0:04:14]} 34. Rd4 {[%emt 0:00:01]} Ra2 {[%emt 0:00:33]} 35. Rd3 {[%emt 0:00:44]} Rxb2 {[%emt 0:07:16]} 36. Rf3 {[%emt 0:00:06]} f5 {[%emt 0:00:41]} 37. Ra3 {[%emt 0:00:12]} 1-0

[Event "Prague Open 2025"]
[Site "Prague"]
[Date "2025.01.12"]
[Round "4.10"]
[White "Chan, Kim Yew"]
[Black "Rindhiya V"]
[Result "1-0"]
[Annotator "RC"]
[ECO "A05"]
[WhiteElo "2258"]
[BlackElo "1999"]
[PlyCount "111"]
[EventDate "2025.01.07"]
[EventType "swiss"]
[EventCountry "CZE"]
[SourceTitle "playchess.com"]
[Source "ChessBase"]
[SourceQuality "1"]
[TimeControl "40/5400+30:1800+30"]

1. Nf3 {[%emt 0:00:01]} Nf6 {[%emt 0:01:20]} 2. c4 {[%emt 0:00:02]} e6 {[%emt 0:00:14]} 3. g3 {[%emt 0:00:03]} d5 {[%emt 0:00:14]} 4. d4 {[%emt 0:00:01]} Bb4+ {[%emt 0:00:09]} 5. Bd2 {[%emt 0:00:02]} Be7 {[%emt 0:00:21]} 6. Bg2 {[%emt 0:00:02]} O-O {[%emt 0:00:11]} 7. O-O {[%emt 0:00:04]} c6 {[%emt 0:00:02]} 8. Bc3 {[%emt 0:00:07]} b6 {[%emt 0:13:23]} 9. Nbd2 {[%emt 0:00:20]} Bb7 {[%emt 0:03:18]} 10. b4 {[%emt 0:00:22]} c5 {[%emt 0:18:01]} 11. bxc5 {[%emt 0:01:31]} bxc5 {[%emt 0:00:04]} 12. Rb1 {[%emt 0:00:49]} Bc6 {[%emt 0:08:25]} 13. Ne5 {[%emt 0:02:04]} Qc7 {[%emt 0:05:10]} 14. dxc5 {[%emt 0:04:36]} Nbd7 {[%emt 0:20:59]} 15. Nxd7 {[%emt 0:06:54]} Nxd7 {[%emt 0:01:46]} 16. cxd5 {[%emt 0:07:31]} exd5 {[%emt 0:02:58]} 17. Bd4 {[%emt 0:22:57]} Bxc5 {[%emt 0:07:38]} 18. Bxc5 {[%emt 0:07:24]} Nxc5 {[%emt 0:00:03]} 19. Rc1 {[%emt 0:00:18]} Qa5 {[%emt 0:02:33]} 20. Qc2 {[%emt 0:01:04]} Bb7 {[%emt 0:04:00]} 21. Qxc5 {[%emt 0:01:46]} Qxd2 {[%emt 0:00:05]} 22. Rc2 {[%emt 0:01:00]} Qg5 {[%emt 0:01:53]} 23. Rb2 {[%emt 0:07:47]} Rfc8 {[%emt 0:04:17]} 24. Qa5 {[%emt 0:01:28]} Bc6 {[%emt 0:00:29]} 25. Rc2 {[%emt 0:02:11]} Qe7 {[%emt 0:04:51]} 26. Rfc1 {[%emt 0:03:41]} Qd7 {[%emt 0:00:29]} 27. Bxd5 {[%emt 0:06:17]} Bxd5 {[%emt 0:00:12]} 28. Qxd5 {[%emt 0:00:08]} Qxd5 {[%emt 0:00:51]} 29. Rxc8+ {[%emt 0:00:02]} Qd8 {[%emt 0:00:05]} 30. Rxd8+ {[%emt 0:00:03]} Rxd8 {[%emt 0:00:05]} 31. Rc7 {[%emt 0:00:09]} Ra8 {[%emt 0:00:08]} 32. e3 {[%emt 0:00:49]} g6 {[%emt 0:00:02]} 33. a4 {[%emt 0:00:46]} a5 {[%emt 0:00:13]} 34. Rc5 {[%emt 0:00:05]} Kg7 {[%emt 0:00:11]} 35. g4 {[%emt 0:00:46]} h6 {[%emt 0:00:33]} 36. Kg2 {[%emt 0:00:31]} Kf6 {[%emt 0:00:09]} 37. h4 {[%emt 0:00:30]} Ra6 {[%emt 0:00:21]} 38. g5+ {[%emt 0:01:34]} hxg5 {[%emt 0:00:56]} 39. hxg5+ {[%emt 0:00:02]} Ke6 {[%emt 0:00:07]} 40. Kf3 {[%emt 0:00:35]} Kd6 {[%emt 0:01:41]} 41. Rb5 {[%emt 0:31:34]} Ke6 {[%emt 0:30:26]} 42. Ke4 {[%emt 0:00:46]} Kd6 {[%emt 0:01:13]} 43. f4 {[%emt 0:00:39]} Ke6 {[%emt 0:00:13]} 44. Re5+ {[%emt 0:00:20]} Kd6 {[%emt 0:00:04]} 45. Kd4 {[%emt 0:00:40]} Kd7 {[%emt 0:00:31]} 46. Kc5 {[%emt 0:00:41]} Ra8 {[%emt 0:01:19]} 47. Kb6 {[%emt 0:01:52]} Kd6 {[%emt 0:00:10]} 48. Kb7 {[%emt 0:00:23]} Rh8 {[%emt 0:01:09]} 49. Rxa5 {[%emt 0:00:20]} Rh3 {[%emt 0:00:05]} 50. Re5 {[%emt 0:00:14]} Rh2 {[%emt 0:00:03]} 51. Kb6 {[%emt 0:00:20]} Rb2+ {[%emt 0:00:09]} 52. Rb5 {[%emt 0:00:12]} Re2 {[%emt 0:00:03]} 53. Rb3 {[%emt 0:00:17]} Kd5 {[%emt 0:00:01]} 54. Kb5 {[%emt 0:01:44]} Rc2 {[%emt 0:01:29]} 55. a5 {[%emt 0:00:09]} Rc8 {[%emt 0:00:03]} 56. Rd3+ {[%emt 0:00:19]} 1-0